fUST/lending_fUST_20250221
["ID","MTS","AMOUNT","RATE_DAILY","PERIOD"]
[353887158,1740112251228,-702.91,0.00014438,2]
[353887159,1740112251238,-1636.13,0.00014438,2]
[353887160,1740112251247,-518.65,0.00014438,2]
[353887161,1740112251257,-500.0,0.00014438,2]
[353887162,1740112251267,-1616.94,0.00014438,2]
[353887163,1740112251276,-621.21,0.00014438,2]
[353887164,1740112251285,-2200.03,0.00014438,2]
[353887165,1740112251295,-1891.55,0.00014438,2]
[353887166,1740112251304,-500.0,0.00014438,2]
[353887167,1740112251314,-584.08,0.00014438,2]
[353887168,1740112251323,-1463.98,0.00014438,2]
[353887169,1740112251332,-4734.85,0.00014438,2]
[353887170,1740112251342,-500.0,0.00014438,2]
[353887171,1740112251351,-709.19,0.00014438,2]
[353887172,1740112251360,-500.0,0.00014438,2]
[353887173,1740112251369,-500.0,0.00014438,2]
[353887174,1740112251379,-1788.15,0.00014438,2]
[353887175,1740112251388,-506.03743178,0.00014438,2]
[353887176,1740112251397,-14987.05,0.00014438,2]
[353887177,1740112251407,-500.0,0.00014438,2]
[353887178,1740112251416,-500.0,0.00014438,2]
[353887179,1740112251425,-700.0,0.00014438,2]
[353887180,1740112251434,-168.40801011,0.00014438,2]
[353887181,1740112251443,-500.0,0.0001452,2]
[353887182,1740112251452,-500.0,0.0001452,2]
[353887183,1740112251461,-1333.54,0.0001452,2]
[353887184,1740112251470,-500.0,0.0001452,2]
[353887185,1740112251479,-500.0,0.0001452,2]
[353887186,1740112251488,-640.02,0.0001452,2]
[353887187,1740112251497,-500.0,0.0001452,2]
[353887188,1740112251507,-812.91,0.0001452,2]
[353887189,1740112251516,-500.0,0.0001452,2]
[353887190,1740112251525,-500.0,0.0001452,2]
[353887191,1740112251534,-500.0,0.0001452,2]
[353887192,1740112251543,-500.0,0.0001452,2]
[353887193,1740112251552,-580.29,0.0001452,2]
[353887194,1740112251561,-500.0,0.0001452,2]
[353887195,1740112251571,-500.0,0.0001452,2]
[353887196,1740112251580,-974.15,0.0001452,2]
[353887197,1740112251590,-500.0,0.0001452,2]
[353887198,1740112251599,-500.0,0.0001452,2]
[353887199,1740112251608,-500.0,0.0001452,2]
[353887200,1740112251618,-500.0,0.0001452,2]
[353887201,1740112251627,-950.86,0.0001452,2]
[353887202,1740112251636,-500.0,0.0001452,2]
[353887203,1740112251645,-718.47,0.0001452,2]
[353887204,1740112251654,-596.26,0.0001452,2]
[353887205,1740112251663,-500.24904968,0.0001452,2]
[353887206,1740112251672,-640.49,0.0001452,2]
[353887207,1740112251681,-500.0,0.0001452,2]
[353887208,1740112251690,-500.0,0.0001452,2]
[353887209,1740112251699,-500.0,0.0001452,2]
[353887210,1740112251708,-500.0,0.0001452,2]
[353887211,1740112251717,-500.0,0.0001452,2]
[353887212,1740112251726,-500.0,0.0001452,2]
[353887213,1740112251735,-500.0,0.0001452,2]
[353887214,1740112251744,-6912.66,0.0001452,2]
[353887215,1740112251753,-598.64,0.0001452,2]
[353887216,1740112251762,-2126.12,0.0001452,2]
[353887217,1740112251772,-2057.23,0.0001452,2]
[353887218,1740112251784,-1180.77,0.0001452,2]
[353887219,1740112251793,-500.0,0.0001452,2]
[353887220,1740112251802,-500.0,0.0001452,2]
[353887221,1740112251812,-3110.89,0.0001452,2]
[353887222,1740112251822,-1063.8,0.0001452,2]
[353887223,1740112251831,-500.0,0.0001452,2]
[353887224,1740112251840,-579.65,0.0001452,2]
[353887225,1740112251849,-1893.75,0.0001452,2]
[353887226,1740112251860,-1155.97,0.0001452,2]
[353887227,1740112251869,-608.411473,0.0001452,2]
[353887228,1740112251879,-500.0,0.0001452,2]
[353887229,1740112251888,-933.1,0.0001452,2]
[353887230,1740112251898,-950.54,0.0001452,2]
[353887231,1740112251907,-12368.39,0.0001452,2]
[353887232,1740112251916,-5183.19,0.0001452,2]
[353887233,1740112251925,-500.0,0.0001452,2]
[353887234,1740112251935,-29788.38,0.0001452,2]
[353887235,1740112251944,-915.53,0.0001452,2]
[353887236,1740112251953,-712.21,0.0001452,2]
[353887237,1740112251962,-2828.99,0.0001452,2]
[353887238,1740112251971,-1498.22,0.0001452,2]
[353887239,1740112251980,-1569.7,0.0001452,2]
[353887240,1740112251989,-1107.5,0.0001452,2]
[353887241,1740112251998,-505.80932262,0.0001452,2]
[353887242,1740112252007,-500.0,0.0001452,2]
[353887243,1740112252017,-1013.92,0.0001452,2]
[353887244,1740112252026,-3081.86,0.0001452,2]
[353887245,1740112252035,-500.0,0.0001452,2]
[353887246,1740112252045,-553.77,0.0001452,2]
[353887247,1740112252054,-838.68,0.0001452,2]
[353887248,1740112252063,-500.0,0.0001452,2]
[353887249,1740112252072,-500.0,0.0001452,2]
[353887250,1740112252082,-702.91,0.0001452,2]
[353887251,1740112252091,-1636.13,0.0001452,2]
[353887252,1740112252100,-518.65,0.0001452,2]
[353887253,1740112252110,-500.0,0.0001452,2]
[353887254,1740112252119,-1616.94,0.0001452,2]
[353887255,1740112252129,-621.21,0.0001452,2]
[353887256,1740112252138,-2200.03,0.0001452,2]
[353887257,1740112252148,-1891.55,0.0001452,2]
[353887258,1740112252157,-500.0,0.0001452,2]
[353887259,1740112252166,-584.08,0.0001452,2]
[353887260,1740112252175,-151.0,0.0001452,2]
[353887261,1740112252185,-1463.98,0.0001452,2]
[353887262,1740112252194,-4734.85,0.0001452,2]
[353887263,1740112252203,-500.0,0.0001452,2]
[353887264,1740112252213,-709.19,0.0001452,2]
[353887265,1740112252222,-500.0,0.0001452,2]
[353887266,1740112252231,-212.750623,0.0001452,2]
[353887267,1740112252240,-500.0,0.0001452,2]
[353887268,1740112252249,-212.750623,0.0001452,2]
[353887269,1740112252258,-1788.15,0.0001452,2]
[353887270,1740112252267,-151.0,0.0001452,2]
[353887271,1740112252276,-14987.05,0.0001452,2]
[353887272,1740112252285,-500.0,0.0001452,2]
[353887273,1740112252294,-500.0,0.0001452,2]
[353887274,1740112252303,-355.2534587,0.00014521,2]
[353887275,1740112252312,-349.0215852,0.00014602,2]
[353887276,1740112252321,-500.0,0.00014602,2]
[353887277,1740112252330,-1333.54,0.00014602,2]
[353887278,1740112252339,-500.0,0.00014602,2]
[353887279,1740112252349,-500.0,0.00014602,2]
[353887280,1740112252358,-640.02,0.00014602,2]
[353887281,1740112252367,-500.0,0.00014602,2]
[353887282,1740112252376,-812.91,0.00014602,2]
[353887283,1740112252385,-500.0,0.00014602,2]
[353887284,1740112252395,-500.0,0.00014602,2]
[353887285,1740112252404,-500.0,0.00014602,2]
[353887286,1740112252413,-500.0,0.00014602,2]
[353887287,1740112252422,-580.29,0.00014602,2]
[353887288,1740112252431,-500.0,0.00014602,2]
[353887289,1740112252441,-500.0,0.00014602,2]
[353887290,1740112252450,-974.15,0.00014602,2]
[353887291,1740112252459,-500.0,0.00014602,2]
[353887292,1740112252468,-500.0,0.00014602,2]
[353887293,1740112252478,-500.0,0.00014602,2]
[353887294,1740112252487,-500.0,0.00014602,2]
[353887295,1740112252496,-950.86,0.00014602,2]
[353887296,1740112252506,-500.0,0.00014602,2]
[353887297,1740112252515,-718.47,0.00014602,2]
[353887298,1740112252525,-596.26,0.00014602,2]
[353887299,1740112252535,-640.49,0.00014602,2]
[353887300,1740112252544,-500.0,0.00014602,2]
[353887301,1740112252554,-500.0,0.00014602,2]
[353887302,1740112252563,-500.0,0.00014602,2]
[353887303,1740112252573,-500.0,0.00014602,2]
[353887304,1740112252583,-487.08411756,0.00014602,2]
[353887305,1740112252592,-500.0,0.00014602,2]
[353887306,1740112252678,-500.0,0.00014602,2]
[353887307,1740112252688,-6912.66,0.00014602,2]
[353887308,1740112252697,-598.64,0.00014602,2]
[353887309,1740112252707,-2126.12,0.00014602,2]
[353887310,1740112252717,-2057.23,0.00014602,2]
[353887311,1740112252726,-1180.77,0.00014602,2]
[353887312,1740112252736,-153.030156,0.00014602,2]
[353887313,1740112252745,-500.0,0.00014602,2]
[353887314,1740112252754,-500.0,0.00014602,2]
[353887315,1740112252764,-3110.89,0.00014602,2]
[353887316,1740112252773,-1063.8,0.00014602,2]
[353887317,1740112252787,-151.0,0.00014602,2]
[353887318,1740112252796,-151.0,0.00014602,2]
[353887319,1740112252806,-500.0,0.00014602,2]
[353887320,1740112252815,-579.65,0.00014602,2]
[353887321,1740112252826,-1893.75,0.00014602,2]
[353887322,1740112252835,-1155.97,0.00014602,2]
[353887323,1740112252845,-500.0,0.00014602,2]
[353887324,1740112252855,-933.1,0.00014602,2]
[353887325,1740112252866,-950.54,0.00014602,2]
[353887326,1740112252876,-12368.39,0.00014602,2]
[353887327,1740112252886,-5183.19,0.00014602,2]
[353887328,1740112252896,-500.0,0.00014602,2]
[353887329,1740112252905,-29788.38,0.00014602,2]
[353887330,1740112252915,-915.53,0.00014602,2]
[353887331,1740112252925,-712.21,0.00014602,2]
[353887332,1740112252934,-2828.99,0.00014602,2]
[353887333,1740112252944,-1498.22,0.00014602,2]
[353887334,1740112252954,-1569.7,0.00014602,2]
[353887335,1740112252963,-1107.5,0.00014602,2]
[353887336,1740112252973,-500.0,0.00014602,2]
[353887337,1740112252982,-1013.92,0.00014602,2]
[353887338,1740112252992,-3081.86,0.00014602,2]
[353887339,1740112253001,-500.0,0.00014602,2]
[353887340,1740112253011,-553.77,0.00014602,2]
[353887341,1740112253020,-838.68,0.00014602,2]
[353887342,1740112253030,-500.0,0.00014602,2]
[353887343,1740112253039,-500.0,0.00014602,2]
[353887344,1740112253049,-702.91,0.00014602,2]
[353887345,1740112253058,-1636.13,0.00014602,2]
[353887346,1740112253067,-161.522347,0.00014602,2]
[353887347,1740112253077,-161.522347,0.00014602,2]
[353887348,1740112253087,-518.65,0.00014602,2]
[353887349,1740112253096,-500.0,0.00014602,2]
[353887350,1740112253106,-1616.94,0.00014602,2]
[353887351,1740112253115,-151.0,0.00014602,2]
[353887352,1740112253124,-621.21,0.00014602,2]
[353887353,1740112253134,-2200.03,0.00014602,2]
[353887354,1740112253143,-500.0,0.00014602,2]
[353887355,1740112253152,-1891.55,0.00014602,2]
[353887356,1740112253162,-584.08,0.00014602,2]
[353887357,1740112253171,-1463.98,0.00014602,2]
[353887358,1740112253180,-4734.85,0.00014602,2]
[353887359,1740112253190,-616.09117246,0.00014602,2]
[353887360,1740112253199,-709.19,0.00014602,2]
[353887361,1740112253208,-500.0,0.00014602,2]
[353887362,1740112253217,-500.0,0.00014602,2]
[353887363,1740112253227,-1788.15,0.00014602,2]
[353887364,1740112253236,-14987.05,0.00014602,2]
[353887365,1740112253246,-500.0,0.00014602,2]
[353887366,1740112253255,-500.0,0.00014602,2]
[353887367,1740112253266,-355.2534587,0.00014603,2]
[353887368,1740112253275,-355.2534587,0.00014603,2]
[353887369,1740112253284,-355.2534587,0.00014603,2]
[353887370,1740112253294,-355.2534587,0.00014603,2]
[353887371,1740112253303,-355.2534587,0.00014603,2]
[353887372,1740112253313,-355.2534587,0.00014603,2]
[353887373,1740112253322,-355.2534587,0.00014603,2]
[353887374,1740112253331,-355.2534587,0.00014603,2]
[353887375,1740112253340,-355.2534587,0.00014603,2]
[353887376,1740112253350,-355.2534587,0.00014603,2]
[353887377,1740112253359,-355.2534587,0.00014603,2]
[353887378,1740112253369,-355.2534587,0.00014603,2]
[353887379,1740112253384,-355.2534587,0.00014603,2]
[353887380,1740112253401,-355.2534587,0.00014603,2]
[353887381,1740112253415,-355.2534587,0.00014603,2]
[353887382,1740112253430,-355.2534587,0.00014603,2]
[353887383,1740112253445,-342.6995501,0.00014603,2]
[353887384,1740112253461,-500.96222818,0.00014612,2]
[353887385,1740112253478,-510.21662981,0.00014612,2]
[353887386,1740112253494,-168.40801011,0.0001463,2]
[353887387,1740112253508,-600.0,0.0001465,2]
[353887388,1740112253523,-160.0,0.00014669,4]
[353887389,1740112253538,-522.26455558,0.00014673,2]
[353887390,1740112253550,-500.0,0.00014673,2]
[353887391,1740112253563,-162.12723588,0.00014673,2]
[353887392,1740112253578,-500.38433033,0.00014673,2]
[353887393,1740112253593,-500.44648934,0.00014673,2]
[353887394,1740112253610,-500.5595125,0.00014673,2]
[353887395,1740112253625,-500.0,0.00014673,2]
[353887396,1740112253638,-500.89053201,0.00014673,2]
[353887397,1740112253649,-500.0,0.00014673,2]
[353887398,1740112253663,-500.49924397,0.00014673,2]
[353887399,1740112253679,-330.79250448,0.00014673,2]
[353887400,1740112253691,-500.0,0.00014673,2]
[353887401,1740112253705,-152.0622986,0.00014673,2]
[353887402,1740112253716,-501.6663113,0.00014673,2]
[353887403,1740112253729,-500.0,0.00014673,2]
[353887404,1740112253742,-500.0,0.00014684,2]
[353887405,1740112253754,-1333.54,0.00014684,2]
[353887406,1740112253767,-500.0,0.00014684,2]
[353887407,1740112253782,-500.0,0.00014684,2]
[353887408,1740112253797,-640.02,0.00014684,2]
[353887409,1740112253809,-500.0,0.00014684,2]
[353887410,1740112253821,-812.91,0.00014684,2]
[353887411,1740112253834,-500.0,0.00014684,2]
[353887412,1740112253846,-500.0,0.00014684,2]
[353887413,1740112253860,-500.0,0.00014684,2]
[353887414,1740112253873,-500.0,0.00014684,2]
[353887415,1740112253886,-580.29,0.00014684,2]
[353887416,1740112253898,-500.0,0.00014684,2]
[353887417,1740112253911,-500.0,0.00014684,2]
[353887418,1740112253923,-974.15,0.00014684,2]
[353887419,1740112253937,-500.0,0.00014684,2]
[353887420,1740112253949,-500.0,0.00014684,2]
[353887421,1740112253962,-500.0,0.00014684,2]
[353887422,1740112253975,-500.0,0.00014684,2]
[353887423,1740112253988,-950.86,0.00014684,2]
[353887424,1740112254000,-500.0,0.00014684,2]
[353887425,1740112254012,-718.47,0.00014684,2]
[353887426,1740112254024,-596.26,0.00014684,2]
[353887427,1740112254037,-640.49,0.00014684,2]
[353887428,1740112254050,-507.11130393,0.00014684,2]
[353887429,1740112254062,-232.64796735,0.00014684,2]
[353887430,1740112254075,-500.0,0.00014684,2]
[353887431,1740112254088,-510.04550111,0.00014684,2]
[353887432,1740112254100,-500.0,0.00014684,2]
[353887433,1740112254112,-548.51021941,0.00014684,2]
[353887434,1740112254125,-6912.66,0.00014684,2]
[353887435,1740112254138,-598.64,0.00014684,2]
[353887436,1740112254151,-2126.12,0.00014684,2]
[353887437,1740112254164,-2057.23,0.00014684,2]
[353887438,1740112254176,-1180.77,0.00014684,2]
[353887439,1740112254190,-500.0,0.00014684,2]
[353887440,1740112254202,-500.0,0.00014684,2]
[353887441,1740112254215,-3110.89,0.00014684,2]
[353887442,1740112254227,-1063.8,0.00014684,2]
[353887443,1740112254240,-500.0,0.00014684,2]
[353887444,1740112254252,-579.65,0.00014684,2]
[353887445,1740112254265,-1893.75,0.00014684,2]
[353887446,1740112254276,-1155.97,0.00014684,2]
[353887447,1740112254285,-500.0,0.00014684,2]
[353887448,1740112254295,-933.1,0.00014684,2]
[353887449,1740112254305,-950.54,0.00014684,2]
[353887450,1740112254444,-12368.39,0.00014684,2]
[353887451,1740112254454,-5183.19,0.00014684,2]
[353887452,1740112254464,-500.0,0.00014684,2]
[353887453,1740112254474,-29788.38,0.00014684,2]
[353887454,1740112254483,-915.53,0.00014684,2]
[353887455,1740112254493,-712.21,0.00014684,2]
[353887456,1740112254504,-2828.99,0.00014684,2]
[353887457,1740112254513,-1498.22,0.00014684,2]
[353887458,1740112254523,-1569.7,0.00014684,2]
[353887459,1740112254533,-1107.5,0.00014684,2]
[353887460,1740112254543,-500.0,0.00014684,2]
[353887461,1740112254553,-1013.92,0.00014684,2]
[353887462,1740112254562,-3081.86,0.00014684,2]
[353887463,1740112254572,-500.0,0.00014684,2]
[353887464,1740112254581,-553.77,0.00014684,2]
[353887465,1740112254591,-838.68,0.00014684,2]
[353887466,1740112254600,-500.0,0.00014684,2]
[353887467,1740112254610,-500.0,0.00014684,2]
[353887468,1740112254619,-702.91,0.00014684,2]
[353887469,1740112254629,-1636.13,0.00014684,2]
[353887470,1740112254640,-518.65,0.00014684,2]
[353887471,1740112254650,-500.0,0.00014684,2]
[353887472,1740112254660,-1616.94,0.00014684,2]
[353887473,1740112254669,-621.21,0.00014684,2]
[353887474,1740112254679,-2200.03,0.00014684,2]
[353887475,1740112254689,-500.0,0.00014684,2]
[353887476,1740112254700,-1891.55,0.00014684,2]
[353887477,1740112254710,-584.08,0.00014684,2]
[353887478,1740112254720,-4734.85,0.00014684,2]
[353887479,1740112254729,-1463.98,0.00014684,2]
[353887480,1740112254739,-709.19,0.00014684,2]
[353887481,1740112254748,-500.0,0.00014684,2]
[353887482,1740112254758,-500.0,0.00014684,2]
[353887483,1740112254768,-1788.15,0.00014684,2]
[353887484,1740112254777,-14987.05,0.00014684,2]
[353887485,1740112254791,-506.26753492,0.00014684,2]
[353887486,1740112254801,-500.0,0.00014684,2]
[353887487,1740112254810,-355.2534587,0.00014685,2]
[353887488,1740112254819,-355.2534587,0.00014685,2]
[353887489,1740112254829,-307.0,0.0001471,2]
[353887490,1740112254839,-500.99293683,0.00014721,2]
[353887491,1740112254849,-1000.0,0.00014721,2]
[353887492,1740112254860,-501.3968598,0.00014721,2]
[353887493,1740112254870,-500.8256556,0.00014721,2]
[353887494,1740112254879,-501.07938361,0.00014721,2]
[353887495,1740112254889,-1000.0,0.00014721,2]
[353887496,1740112254899,-279.99377584,0.00014721,2]
[353887497,1740112254908,-517.12891589,0.00014721,2]
[353887498,1740112254917,-1000.0,0.00014721,2]
[353887499,1740112254927,-500.0,0.00014767,2]
[353887500,1740112254937,-1333.54,0.00014767,2]
[353887501,1740112254946,-500.0,0.00014767,2]
[353887502,1740112254956,-500.0,0.00014767,2]
[353887503,1740112254966,-640.02,0.00014767,2]
[353887504,1740112254975,-500.0,0.00014767,2]
[353887505,1740112254984,-812.91,0.00014767,2]
[353887506,1740112254994,-500.0,0.00014767,2]
[353887507,1740112255004,-500.0,0.00014767,2]
[353887508,1740112255013,-500.0,0.00014767,2]
[353887509,1740112255022,-500.0,0.00014767,2]
[353887510,1740112255032,-580.29,0.00014767,2]
[353887511,1740112255042,-507.07882964,0.00014767,2]
[353887512,1740112255051,-500.0,0.00014767,2]
[353887513,1740112255061,-974.15,0.00014767,2]
[353887514,1740112255071,-337.8382426,0.00014767,2]
[353887515,1740112255080,-219.05290424,0.00014767,2]
[353887516,1740112255090,-500.0,0.00014767,2]
[353887517,1740112255099,-514.52457317,0.00014767,2]
[353887518,1740112255109,-500.0,0.00014767,2]
[353887519,1740112255118,-950.86,0.00014767,2]
[353887520,1740112255127,-718.47,0.00014767,2]
[353887521,1740112255137,-596.26,0.00014767,2]
[353887522,1740112255146,-640.49,0.00014767,2]
[353887523,1740112255156,-500.0,0.00014767,2]
[353887524,1740112255165,-500.0,0.00014767,2]
[353887525,1740112255175,-6912.66,0.00014767,2]
[353887526,1740112255185,-598.64,0.00014767,2]
[353887527,1740112255195,-2126.12,0.00014767,2]
[353887528,1740112255204,-2057.23,0.00014767,2]
[353887529,1740112255214,-1180.77,0.00014767,2]
[353887530,1740112255223,-521.20982767,0.00014767,2]
[353887531,1740112255233,-500.0,0.00014767,2]
[353887532,1740112255242,-3110.89,0.00014767,2]
[353887533,1740112255252,-1063.8,0.00014767,2]
[353887534,1740112255262,-500.0,0.00014767,2]
[353887535,1740112255271,-579.65,0.00014767,2]
[353887536,1740112255280,-1893.75,0.00014767,2]
[353887537,1740112255289,-1155.97,0.00014767,2]
[353887538,1740112255299,-500.0,0.00014767,2]
[353887539,1740112255308,-933.1,0.00014767,2]
[353887540,1740112255318,-950.54,0.00014767,2]
[353887541,1740112255327,-12368.39,0.00014767,2]
[353887542,1740112255336,-5183.19,0.00014767,2]
[353887543,1740112255346,-500.0,0.00014767,2]
[353887544,1740112255355,-29788.38,0.00014767,2]
[353887545,1740112255364,-915.53,0.00014767,2]
[353887546,1740112255373,-712.21,0.00014767,2]
[353887547,1740112255383,-2828.99,0.00014767,2]
[353887548,1740112255392,-1498.22,0.00014767,2]
[353887549,1740112255401,-1569.7,0.00014767,2]
[353887550,1740112255411,-1107.5,0.00014767,2]
[353887551,1740112255421,-500.0,0.00014767,2]
[353887552,1740112255430,-1013.92,0.00014767,2]
[353887553,1740112255440,-3081.86,0.00014767,2]
[353887554,1740112255450,-500.0,0.00014767,2]
[353887555,1740112255459,-553.77,0.00014767,2]
[353887556,1740112255469,-838.68,0.00014767,2]
[353887557,1740112255479,-443.10445159,0.00014767,2]
[353887558,1740112255488,-500.0,0.00014767,2]
[353887559,1740112255499,-702.91,0.00014767,2]
[353887560,1740112255508,-1636.13,0.00014767,2]
[353887561,1740112255519,-518.65,0.00014767,2]
[353887562,1740112255530,-500.0,0.00014767,2]
[353887563,1740112255539,-1616.94,0.00014767,2]
[353887564,1740112255548,-621.21,0.00014767,2]
[353887565,1740112255557,-500.0,0.00014767,2]
[353887566,1740112255567,-2200.03,0.00014767,2]
[353887567,1740112255576,-1891.55,0.00014767,2]
[353887568,1740112255585,-584.08,0.00014767,2]
[353887569,1740112255595,-4734.85,0.00014767,2]
[353887570,1740112255605,-1463.98,0.00014767,2]
[353887571,1740112255615,-709.19,0.00014767,2]
[353887572,1740112255624,-500.0,0.00014767,2]
[353887573,1740112255634,-500.0,0.00014767,2]
[353887574,1740112255644,-151.0,0.00014767,2]
[353887575,1740112255653,-1788.15,0.00014767,2]
[353887576,1740112255663,-14987.05,0.00014767,2]
[353887577,1740112255672,-500.0,0.00014767,2]
[353887578,1740112255682,-11886.80580218,0.00014773,2]
[353887579,1740112255692,-151.0,0.000148,2]
[353887580,1740112255702,-77670.88052208,0.000148,2]
[353887581,1740112255885,-26441.06057192,0.000148,2]
[353887582,1740112255895,-151.0,0.000148,2]
[353887583,1740112255905,-212.750623,0.000148,2]
[353887584,1740112255915,-212.750623,0.000148,2]
[353887585,1740112255924,-606.11449744,0.00014802,2]
[353887586,1740112255934,-562.4722595,0.00014847,2]
[353887587,1740112255944,-160.0,0.00014848,2]
[353887588,1740112255954,-500.0,0.00014849,2]
[353887589,1740112255964,-1333.54,0.00014849,2]
[353887590,1740112255973,-500.0,0.00014849,2]
[353887591,1740112255983,-500.0,0.00014849,2]
[353887592,1740112255993,-640.02,0.00014849,2]
[353887593,1740112256002,-500.0,0.00014849,2]
[353887594,1740112256011,-812.91,0.00014849,2]
[353887595,1740112256021,-500.0,0.00014849,2]
[353887596,1740112256030,-500.0,0.00014849,2]
[353887597,1740112256040,-500.0,0.00014849,2]
[353887598,1740112256050,-500.0,0.00014849,2]
[353887599,1740112256059,-580.29,0.00014849,2]
[353887600,1740112256069,-500.0,0.00014849,2]
[353887601,1740112256079,-974.15,0.00014849,2]
[353887602,1740112256090,-500.0,0.00014849,2]
[353887603,1740112256102,-500.0,0.00014849,2]
[353887604,1740112256111,-950.86,0.00014849,2]
[353887605,1740112256122,-718.47,0.00014849,2]
[353887606,1740112256131,-596.26,0.00014849,2]
[353887607,1740112256141,-640.49,0.00014849,2]
[353887608,1740112256154,-500.0,0.00014849,2]
[353887609,1740112256163,-500.0,0.00014849,2]
[353887610,1740112256173,-6912.66,0.00014849,2]
[353887611,1740112256184,-598.64,0.00014849,2]
[353887612,1740112256194,-2126.12,0.00014849,2]
[353887613,1740112256204,-2057.23,0.00014849,2]
[353887614,1740112256214,-1180.77,0.00014849,2]
[353887615,1740112256223,-500.0,0.00014849,2]
[353887616,1740112256232,-3110.89,0.00014849,2]
[353887617,1740112256242,-1063.8,0.00014849,2]
[353887618,1740112256252,-508.37035668,0.00014849,2]
[353887619,1740112256261,-579.65,0.00014849,2]
[353887620,1740112256271,-1893.75,0.00014849,2]
[353887621,1740112256280,-1155.97,0.00014849,2]
[353887622,1740112256290,-500.0,0.00014849,2]
[353887623,1740112256300,-933.1,0.00014849,2]
[353887624,1740112256310,-950.54,0.00014849,2]
[353887625,1740112256319,-12368.39,0.00014849,2]
[353887626,1740112256329,-5183.19,0.00014849,2]
[353887627,1740112256339,-500.0,0.00014849,2]
[353887628,1740112256348,-29788.38,0.00014849,2]
[353887629,1740112256358,-915.53,0.00014849,2]
[353887630,1740112256369,-712.21,0.00014849,2]
[353887631,1740112256379,-2828.99,0.00014849,2]
[353887632,1740112256389,-1498.22,0.00014849,2]
[353887633,1740112256398,-1569.7,0.00014849,2]
[353887634,1740112256408,-1107.5,0.00014849,2]
[353887635,1740112256417,-500.0,0.00014849,2]
[353887636,1740112256427,-1013.92,0.00014849,2]
[353887637,1740112256437,-3081.86,0.00014849,2]
[353887638,1740112256446,-636.34537082,0.00014849,2]
[353887639,1740112256456,-553.77,0.00014849,2]
[353887640,1740112256465,-838.68,0.00014849,2]
[353887641,1740112256569,-500.0,0.00014849,2]
[353887642,1740112256582,-702.91,0.00014849,2]
[353887643,1740112256592,-1636.13,0.00014849,2]
[353887644,1740112256602,-161.522347,0.00014849,2]
[353887645,1740112256611,-161.522347,0.00014849,2]
[353887646,1740112256621,-518.65,0.00014849,2]
[353887647,1740112256630,-507.4301472,0.00014849,2]
[353887648,1740112256639,-1616.94,0.00014849,2]
[353887649,1740112256649,-621.21,0.00014849,2]
[353887650,1740112256658,-500.0,0.00014849,2]
[353887651,1740112256667,-2200.03,0.00014849,2]
[353887652,1740112256677,-1891.55,0.00014849,2]
[353887653,1740112256687,-584.08,0.00014849,2]
[353887654,1740112256696,-4734.85,0.00014849,2]
[353887655,1740112256706,-1463.98,0.00014849,2]
[353887656,1740112256715,-709.19,0.00014849,2]
[353887657,1740112256725,-374.74986051,0.00014849,2]